bitfinex/quotes_ETHUSD_20250217
["timestamp","ask_amount","ask_price","bid_price","bid_amount"]
[1739791174959,1e-05,2749.6,2749.5,4.44732]
[1739791175165,0.364,2750.0,2749.9,4.44679]
[1739791175361,0.8204,2751.1,2750.6,3.63551]
[1739791175563,0.8204,2751.1,2750.4,3.63581]
[1739791175887,3.63524,2750.9,2750.7,0.05269987]
[1739791176026,3.63524,2750.9,2749.9,0.8103]
[1739791176027,3.63576,2750.5,2749.9,0.8103]
[1739791176224,3.65047,2750.7,2750.0,3.63626]
[1739791176428,0.8204,2751.1,2750.4,3.404039]
[1739791176685,3.63467,2751.3,2750.6,3.63547]
[1739791176848,1.0505,2751.5,2750.7,3.404039]
[1739791177048,4.40389,2751.5,2750.8,3.63518]
[1739791177261,0.7695,2751.5,2750.7,3.404039]
[1739791177571,4.40388,2751.5,2750.9,0.05269987]
[1739791177755,0.0075,2751.4,2750.7,3.404039]
[1739791177932,0.0075,2751.1,2750.8,0.05269987]
[1739791178131,0.0075,2751.1,2750.6,3.63555]
[1739791178331,0.0075,2751.1,2750.8,3.63526]
[1739791178689,3.63402,2751.8,2751.0,3.404039]
[1739791178844,3.63413,2751.7,2751.0,3.404039]
[1739791179048,0.015,2751.6,2751.1,0.7864]
[1739791179248,0.015,2751.6,2751.1,4.47030384]
[1739791179461,0.0075,2751.6,2751.1,4.47041384]
[1739791179676,0.0075,2751.7,2751.1,4.47041384]
[1739791179847,4.38438,2752.3,2751.6,3.404039]
[1739791180046,0.015,2751.9,2751.6,3.404039]
[1739791180275,0.015,2751.9,2751.7,0.04911384]
[1739791180477,3.64898,2751.8,2751.7,0.04911384]
[1739791180995,3.64913,2751.7,2751.1,5.05301052]
[1739791181289,3.64913,2751.7,2751.1,6.28531957]
[1739791181441,3.63441,2751.5,2751.1,6.28531957]
[1739791181645,3.63373,2752.0,2751.4,4.26661052]
[1739791182116,0.015,2752.0,2751.4,7.90107052]
[1739791182255,3.63336,2752.3,2751.7,4.26661052]
[1739791182458,12.58804,2752.9,2752.0,7.90031052]
[1739791182656,8.177,2752.9,2752.1,0.8257]
[1739791182888,3.64043,2752.6,2752.1,0.8257]
[1739791183071,0.0075,2752.4,2752.1,0.8257]
[1739791183794,3.64057,2752.5,2751.8,4.46617]
[1739791183993,3.6333,2752.4,2751.8,0.8323]
[1739791184195,0.0075,2752.3,2751.9,0.03633406]
[1739791184400,3.64082,2752.3,2751.9,0.87692246]
[1739791184571,0.0075,2752.4,2751.9,4.51074246]
[1739791185090,0.0075,2752.5,2752.0,7.90028052]
[1739791185396,0.0075,2752.6,2752.0,7.90026052]
[1739791185601,0.0075,2752.6,2752.4,0.8049]
[1739791186197,0.0075,2752.7,2752.4,0.8049]
[1739791186510,3.64031,2752.7,2752.4,0.8049]
[1739791186688,3.64031,2752.7,2752.1,0.8102]
[1739791186689,3.63283,2752.7,2752.1,0.8102]
[1739791187056,8.177,2752.9,2752.1,0.8102]
[1739791187057,0.0075,2752.3,2752.1,0.8102]
[1739791188004,3.63342,2752.3,2752.1,0.8102]
[1739791188209,0.0075,2752.2,2751.7,0.8102]
[1739791188357,0.0075,2751.9,2751.7,0.8102]
[1739791188800,3.63325,2752.4,2751.7,0.8102]
[1739791189005,3.63325,2752.4,2751.8,7.90057052]
[1739791189300,3.63299,2752.6,2752.1,4.26661052]
[1739791189459,0.015,2752.5,2752.1,4.26661052]
[1739791190004,0.0075,2752.3,2751.8,5.50110957]
[1739791190192,3.64082,2752.3,2751.8,5.50110957]
[1739791190392,3.64082,2752.3,2751.9,0.04647177]
[1739791191107,0.0075,2752.3,2751.9,1.00344427]
[1739791191399,3.63345,2752.2,2751.9,1.00344427]
[1739791191698,0.0075,2752.3,2751.9,1.00344427]
[1739791191910,0.0075,2752.3,2751.9,4.63728427]
[1739791192284,0.015,2752.5,2752.0,3.6337]
[1739791192492,0.015,2752.5,2752.1,0.82709843]
[1739791193004,3.64814,2752.5,2752.2,0.04647177]
[1739791193359,3.64814,2752.5,2751.9,3.63384]
[1739791193593,0.0075,2752.3,2752.0,0.04647177]
[1739791194309,0.0075,2752.3,2752.0,0.841164]
[1739791194725,0.0075,2752.4,2752.0,0.841164]
[1739791194874,0.0075,2752.4,2752.0,4.474844]
[1739791195076,0.0075,2752.4,2752.0,0.841164]
[1739791195405,3.64069,2752.4,2752.0,0.841164]
[1739791195715,0.0075,2752.4,2752.0,0.841164]
[1739791196015,3.63342,2752.3,2752.0,0.841164]
[1739791196323,7.26682,2752.3,2752.0,0.841164]
[1739791196613,3.6334,2752.3,2752.0,0.841164]
[1739791197104,7.26683,2752.3,2752.0,0.841164]
[1739791197304,3.64108,2752.1,2752.0,0.04647177]
[1739791197509,3.64858,2752.1,2752.0,0.04647177]
[1739791197692,3.64127,2752.0,2751.7,0.8102]
[1739791197896,0.0075,2752.0,2751.7,0.8102]
[1739791198215,7.26626,2752.5,2751.8,4.26661052]
[1739791198424,3.63311,2752.5,2751.9,4.50482205]
[1739791200236,0.015,2752.2,2752.0,0.7921]
[1739791200436,0.015,2752.1,2751.6,0.8152]
[1739791200720,3.64859,2752.1,2751.7,0.50818105]
[1739791201083,0.015,2752.1,2751.7,0.50818105]
[1739791201277,0.015,2752.1,2751.7,4.14228105]
[1739791201482,0.015,2752.1,2751.7,0.50818105]
[1739791201928,0.015,2752.1,2751.7,4.14226105]
[1739791202218,0.015,2752.1,2751.7,0.50818105]
[1739791202723,0.015,2752.1,2751.8,4.76236363]
[1739791202926,0.015,2752.1,2751.8,8.39623363]
[1739791203297,3.63327,2752.4,2751.8,8.39623363]
[1739791203694,0.015,2752.3,2751.9,3.6338]
[1739791205186,3.6332,2752.4,2752.1,4.26661052]
[1739791205522,3.6332,2752.4,2752.2,0.04633977]
[1739791205692,3.63332,2752.3,2752.2,0.04633977]
[1739791206023,3.6332,2752.4,2752.2,0.04633977]
[1739791206325,3.64082,2752.3,2752.2,0.04633977]
[1739791206484,3.6336,2752.1,2751.9,0.7764]
[1739791207603,3.6336,2752.1,2751.7,0.7764]
[1739791208530,3.64847,2752.2,2751.7,4.41045]
[1739791208829,0.015,2752.2,2751.8,3.63391]
[1739791209324,0.015,2752.2,2751.9,4.26661052]
[1739791210682,0.015,2752.2,2751.9,3.40283111]
[1739791211333,3.64848,2752.2,2751.9,3.40283111]
[1739791211985,0.015,2752.2,2751.9,3.40283111]
[1739791212202,0.015,2752.2,2751.9,7.03660111]
[1739791212500,3.63289,2752.7,2752.1,3.63346]
[1739791212704,4.44805,2753.1,2752.5,0.7656]
[1739791212904,0.015,2752.8,2752.5,0.7656]
[1739791213365,0.015,2752.7,2752.5,0.7656]
[1739791213541,0.015,2752.9,2752.5,0.7656]
[1739791213702,3.64758,2752.9,2752.5,0.7656]
[1739791214049,0.015,2752.9,2752.7,3.40283111]
[1739791214205,3.63222,2753.2,2752.7,3.40283111]
[1739791214641,0.015,2753.1,2752.6,11.52771112]
[1739791215352,0.0349149,2753.3,2752.6,4.26194112]
[1739791215640,0.0349149,2753.3,2753.0,4.43651]
[1739791215801,0.0349149,2753.3,2753.0,5.66961511]
[1739791216612,0.0349149,2753.3,2753.2,7.89407112]
[1739791217250,0.0349149,2753.3,2753.2,8.69827112]
[1739791219131,0.0349149,2753.3,2753.2,9.40935149]
[1739791219527,0.0349149,2753.3,2753.2,12.40935149]
[1739791219732,0.0349149,2753.3,2753.2,14.13682315]
[1739791220473,3.63018,2754.7,2753.2,14.73226014]
[1739791220775,0.7777,2755.0,2754.4,7.89237112]
[1739791220917,0.55,2755.1,2754.6,3.63025]
[1739791221265,4.17963,2755.1,2754.7,0.04332711]
[1739791221558,0.015,2754.8,2754.7,0.04332711]
[1739791221713,3.64502,2754.8,2754.7,0.04332711]
[1739791221911,3.63016,2754.7,2754.1,4.38355]
[1739791222165,3.63016,2754.7,2754.2,0.438355]
[1739791222367,0.015,2754.4,2754.2,0.47968176]
[1739791222546,0.015,2754.4,2753.7,3.63141]
[1739791222547,3.015,2754.2,2753.2,2.48017166]
[1739791222749,0.015,2753.3,2752.6,7.89482112]
[1739791223064,3.632,2753.3,2753.2,0.0826]
[1739791223561,3.63193,2753.4,2753.2,0.0826]
[1739791224065,3.632,2753.3,2753.2,0.0826]
[1739791224796,3.63193,2753.4,2753.2,0.0826]
[1739791224994,0.015,2753.3,2753.2,0.0826]
[1739791225157,3.647,2753.3,2753.2,0.0826]
[1739791226814,0.015,2753.3,2753.2,0.0826]
[1739791227461,3.647,2753.3,2753.2,0.0826]
[1739791227957,16.5189,2753.3,2753.2,0.0826]
[1739791229588,17.0689,2753.3,2753.2,0.0826]
[1739791229907,3.63328,2752.4,2751.8,4.41708]
[1739791230407,3.63328,2752.4,2751.9,3.63381]
[1739791230932,3.6481,2752.5,2751.9,3.63374]
[1739791231104,3.6481,2752.5,2752.0,0.441684]
[1739791231716,0.015,2752.5,2752.0,4.075274]
[1739791232279,0.015,2752.5,2752.1,0.0755164]
[1739791232503,3.63321,2752.4,2752.1,0.0755164]
[1739791232841,0.0075,2752.3,2752.1,0.0755164]
[1739791233633,0.0075,2752.4,2752.1,0.0755164]
[1739791234284,3.63345,2752.2,2752.1,0.0755164]
[1739791234492,0.0075,2752.1,2751.8,0.7831]
[1739791234814,0.0075,2752.1,2751.8,1.65100711]
[1739791234988,0.0075,2752.1,2751.8,0.7831]
[1739791235494,0.0075,2752.1,2751.9,0.0755164]
[1739791236152,0.0075,2752.1,2751.9,3.7093664]
[1739791236351,0.0075,2752.1,2751.9,0.0755164]
[1739791236850,0.0075,2752.2,2751.9,0.0755164]
[1739791237060,3.64098,2752.2,2751.9,0.0755164]
[1739791239719,7.27455,2752.2,2751.9,0.0755164]
[1739791239924,7.27453,2752.2,2751.9,0.0755164]
[1739791240217,3.64098,2752.2,2751.9,0.0755164]
[1739791240418,0.0075,2752.3,2751.9,0.0755164]
[1739791240623,3.64872,2752.0,2751.9,0.0755164]
[1739791240879,0.015,2751.8,2751.2,0.7581]
[1739791241024,3.64907,2751.8,2751.3,3.6346]
[1739791241223,3.64907,2751.8,2751.4,0.07626414]
[1739791241224,0.015,2751.8,2751.4,0.07626414]
[1739791241452,3.63424,2751.6,2751.2,4.39275]
[1739791241653,3.63424,2751.6,2750.9,0.7948]
[1739791241654,0.015,2751.3,2750.9,0.7948]
[1739791241865,3.63491,2751.1,2750.9,0.7948]
[1739791242172,3.63492,2751.1,2750.9,0.7948]
[1739791242467,3.63492,2751.1,2750.6,4.38777]
[1739791242678,3.63492,2751.1,2750.7,1.22853011]
[1739791243328,0.015,2751.0,2750.6,0.7522]
[1739791243523,0.015,2750.8,2750.6,0.7522]
[1739791243730,0.015,2750.8,2750.3,4.4373]
[1739791244174,0.015,2750.8,2750.4,3.63582]
[1739791244369,0.015,2750.8,2750.3,4.4373]
[1739791244578,0.015,2750.8,2750.3,5.74315787]
[1739791244931,3.6503,2750.8,2750.3,5.74315787]
[1739791245130,0.7638,2751.2,2750.5,4.26194112]
[1739791245366,0.7638,2751.6,2750.6,0.8029]
[1739791245571,3.63476,2751.3,2750.7,3.63543]
[1739791245747,0.015,2751.2,2750.7,4.50545711]
[1739791246352,3.63479,2751.2,2750.6,4.43838]
[1739791246554,4.44983,2751.0,2750.3,0.7922]
[1739791246734,0.015,2750.9,2750.4,3.63575]
[1739791247139,0.015,2750.9,2750.4,7.2715]
[1739791247357,3.65019,2750.9,2750.4,3.63575]
[1739791247771,0.015,2750.9,2750.4,3.63573]
[1739791247980,0.015,2750.9,2750.6,3.63556]
[1739791248248,3.63451,2751.4,2750.9,0.7785]
[1739791248446,3.63451,2751.4,2750.9,4.4136]
[1739791248646,0.015,2751.3,2750.9,4.4136]
[1739791249301,0.8041,2752.7,2752.0,0.7785]
[1739791249480,3.63249,2753.0,2752.1,4.29827731]
[1739791249787,3.63254,2752.9,2752.3,3.63319]
[1739791249993,3.63276,2752.8,2752.2,0.07487146]
[1739791250298,0.8041,2753.1,2752.3,3.70819146]
[1739791250299,0.015,2753.0,2752.3,3.70819146]
[1739791250465,0.8041,2753.1,2752.3,0.07487146]
[1739791250665,0.8041,2753.1,2752.6,3.63281]
[1739791251367,0.015,2753.0,2752.7,0.07487146]
[1739791252179,0.015,2753.0,2752.4,3.63319]
[1739791252346,0.015,2753.0,2752.8,0.07487146]
[1739791252554,0.015,2753.0,2752.7,3.63267]
[1739791252773,0.015,2753.0,2752.9,0.07487146]
[1739791252981,0.015,2753.0,2752.6,3.63281]
[1739791253177,0.015,2753.0,2752.2,4.26194112]
[1739791253178,0.015,2753.0,2752.9,0.07487146]
[1739791253679,0.015,2753.0,2752.5,3.63297]
[1739791253852,0.015,2753.0,2752.9,0.07487146]
[1739791254052,0.015,2753.0,2752.4,3.63315]
[1739791254351,0.015,2753.0,2752.6,3.6329]
[1739791254996,0.015,2753.0,2752.7,0.07487146]
[1739791259005,0.015,2753.0,2752.7,3.70758146]
[1739791259608,0.015,2753.0,2752.7,0.07487146]
[1739791260417,0.015,2753.0,2752.7,3.70759146]
[1739791261116,4.38608,2753.7,2753.0,3.63233]
[1739791261300,0.7546,2753.7,2753.3,3.63192]
[1739791261613,4.45693,2754.5,2753.8,3.63127]
[1739791261908,0.0075,2754.4,2753.8,7.89316112]
[1739791262111,0.0075,2754.3,2753.9,0.07281982]
[1739791262531,0.0075,2754.4,2754.0,3.631]
[1739791262881,0.015,2754.4,2753.9,3.63111]
[1739791263086,3.64558,2754.4,2754.1,0.07281982]
[1739791263321,3.64558,2754.4,2753.9,3.63111]
[1739791263626,0.015,2754.4,2753.9,3.63111]
[1739791263829,3.64555,2754.4,2754.0,0.07281982]
[1739791263988,0.015,2754.4,2754.0,0.07281982]
[1739791264829,0.015,2754.4,2754.1,3.6309]
[1739791265121,0.015,2754.4,2754.2,0.07203734]
[1739791265702,0.015,2754.4,2754.1,3.63093]
[1739791265915,0.015,2754.4,2754.3,0.07203042]
[1739791266114,5.34,2754.8,2754.1,4.26194112]
[1739791266115,5.3475,2754.8,2754.1,4.26194112]
[1739791266317,5.34,2754.8,2754.4,4.26194112]
[1739791266633,0.55,2754.9,2754.6,3.63024]
[1739791267227,0.55,2754.9,2754.8,0.7701]
[1739791267401,0.55,2754.9,2754.8,4.40012]
[1739791267832,0.55,2754.9,2754.8,0.07187124]
[1739791268193,0.55,2754.9,2754.8,0.07185739]
[1739791268541,0.55,2754.9,2754.7,4.26194112]
[1739791268697,0.55,2754.9,2754.8,0.07185739]
[1739791269112,0.55,2754.9,2754.7,4.26194112]
[1739791269413,0.55,2754.9,2754.8,0.07185739]
[1739791269613,0.55,2754.9,2754.7,7.89209112]
[1739791269836,0.55,2754.9,2754.8,0.07185739]
[1739791270152,0.55,2754.9,2754.7,4.26194112]
[1739791270459,1.1,2754.9,2754.8,0.07185739]
[1739791270654,1.1,2754.9,2754.7,7.89209112]
[1739791270951,1.1,2754.9,2754.8,0.07185739]
[1739791271247,4.72989,2754.9,2754.7,4.26194112]
[1739791271452,4.72989,2754.9,2754.8,0.07185739]
[1739791271749,1.1,2754.9,2754.4,8.71267112]
[1739791271923,1.1,2754.9,2754.8,0.07185739]
[1739791272431,1.1,2754.9,2754.5,3.63033]
[1739791272615,3.64514,2754.8,2754.6,0.06900192]
[1739791272953,0.015,2754.8,2754.2,4.21364282]
[1739791273155,3.64502,2754.8,2754.7,0.06781531]
[1739791273356,3.6302,2754.7,2754.1,8.66377112]
[1739791273583,3.6302,2754.7,2754.1,9.53014823]
[1739791273716,0.015,2754.8,2754.4,3.63054]
[1739791274056,0.55,2754.9,2754.7,0.771]
[1739791274223,0.55,2754.9,2754.8,3.69783531]
[1739791274428,0.55,2754.9,2754.8,0.06781531]
[1739791274728,0.55,2754.9,2754.8,4.07692353]
[1739791274945,0.55,2754.9,2754.8,4.14473884]
[1739791275438,0.55,2754.9,2754.8,0.51471884]
[1739791275769,0.55,2754.9,2754.8,0.06781531]
[1739791276563,0.55,2754.9,2754.5,3.63033]
[1739791276766,0.55,2754.9,2754.8,0.06781531]
[1739791276964,0.55,2754.9,2754.5,3.63033]
[1739791277147,0.55,2754.9,2754.8,0.06781531]
[1739791277354,0.55,2754.9,2754.7,3.63014]
[1739791277560,0.55,2754.9,2754.8,0.06781531]
[1739791277961,0.55,2754.9,2754.6,3.63023]
[1739791278292,0.55,2754.9,2754.6,4.86357211]
[1739791278587,0.55,2754.9,2754.7,0.06781531]
[1739791278870,0.55,2754.9,2754.7,3.69796531]
[1739791279366,0.55,2754.9,2754.7,0.06781531]
[1739791279978,4.39982,2754.8,2754.7,0.06781531]
[1739791280129,13.49082,2754.8,2754.7,0.06781531]
[1739791280332,13.49082,2754.8,2753.9,4.38879]
[1739791280333,3.64557,2754.4,2753.9,4.38879]
[1739791280528,0.0075,2754.2,2753.7,4.26194112]
[1739791280766,0.0075,2754.4,2754.0,0.06532481]
[1739791280968,0.0075,2754.3,2754.0,3.63104]
[1739791281193,0.0075,2754.3,2754.1,0.06536626]
[1739791281898,0.7548,2754.8,2754.1,8.14219626]
[1739791282103,3.63017,2754.7,2754.1,4.51132626]
[1739791282408,0.015,2754.6,2754.1,0.06536626]
[1739791282555,0.015,2754.2,2754.1,0.06536626]
[1739791282755,0.015,2754.2,2753.7,3.6314]
[1739791282756,0.015,2754.2,2753.9,3.6312]
[1739791282974,0.0075,2754.2,2754.1,0.06556665]
[1739791283175,0.0075,2754.2,2753.9,7.988569]
[1739791283468,4.38484,2754.8,2754.3,3.63068]
[1739791283664,0.7548,2754.8,2754.4,0.06556665]
[1739791283983,3.63016,2754.7,2754.4,0.06556665]
[1739791284181,0.0075,2754.6,2754.4,0.06556665]
[1739791284388,0.0075,2754.6,2754.2,0.7901]
[1739791284920,0.0075,2754.7,2754.5,3.6304]
[1739791285276,0.55,2754.9,2754.6,3.63022]
[1739791285471,0.55,2754.9,2754.7,0.06556665]
[1739791285894,0.55,2754.9,2754.5,7.89234112]
[1739791286229,0.55,2754.9,2754.8,0.06543536]
[1739791286372,4.17991,2754.9,2754.3,3.63061]
[1739791286573,4.19491,2754.9,2754.8,0.06543536]
[1739791286777,0.0075,2754.5,2754.1,3.63087]
[1739791287286,0.0075,2754.7,2754.1,3.63086]
[1739791287490,4.17993,2754.9,2754.2,4.26194112]
[1739791287706,0.55,2754.9,2754.2,4.26194112]
[1739791288052,0.0075,2754.4,2753.9,8.68085112]
[1739791288174,0.0075,2754.4,2753.9,5.04974112]
[1739791288375,3.63077,2754.3,2753.9,5.04974112]
[1739791288644,3.63832,2754.2,2753.6,8.71417112]
[1739791288794,0.0075,2754.2,2753.6,8.71417112]
[1739791289008,0.0075,2754.2,2753.9,3.63112]
[1739791289390,0.0075,2754.3,2753.8,3.63122]
[1739791289592,3.63826,2754.3,2753.8,3.63133]
[1739791290131,3.63826,2754.3,2753.6,9.58557823]
[1739791290336,3.6309,2754.2,2753.6,8.71416112]
[1739791290482,0.015,2753.7,2752.7,1.16023726]
[1739791290779,3.63209,2753.3,2752.6,3.63284]
[1739791291186,0.8156,2753.5,2752.6,4.26194112]
[1739791291494,3.63153,2753.7,2752.7,0.762]
[1739791291694,3.63121,2753.9,2753.3,3.6319]
[1739791291884,3.63148,2753.7,2753.1,3.63226]
[1739791292078,3.63148,2753.7,2753.1,4.15251825]
[1739791292634,3.64636,2753.8,2753.3,3.63199]
[1739791292836,0.015,2753.8,2753.3,3.63199]
[1739791293835,4.44642,2754.2,2753.6,3.63158]
[1739791294138,4.44642,2754.2,2753.5,3.63164]
[1739791294139,0.0075,2754.1,2753.5,3.63164]
[1739791294437,0.0075,2753.9,2753.4,3.63177]
[1739791294635,3.63143,2753.8,2753.4,0.443627]
[1739791294813,3.63143,2753.8,2753.1,4.78219937]
[1739791294814,3.63162,2753.6,2753.1,4.78219937]
[1739791295339,3.63202,2753.3,2753.0,0.8045]
[1739791295520,0.0075,2753.4,2753.2,0.0591349]
[1739791295718,3.6322,2753.2,2752.6,3.6329]
[1739791296114,3.6322,2753.2,2752.7,0.0591349]
[1739791296526,3.63372,2752.0,2751.3,9.67868266]
[1739791296693,0.0075,2752.0,2751.4,4.62037745]
[1739791296879,0.0075,2752.0,2751.2,4.26194112]
[1739791297082,0.0075,2752.0,2751.4,3.6345]
[1739791297280,3.64122,2752.0,2751.4,3.6345]
[1739791297539,3.63399,2751.8,2751.0,5.18691198]
[1739791297826,3.63438,2751.5,2751.0,0.8261]
[1739791298210,3.63438,2751.5,2751.0,1.272216]
[1739791298731,0.7917,2751.7,2750.6,4.26194112]
[1739791299029,0.7917,2751.7,2751.1,3.63489]
[1739791299237,0.7917,2751.7,2751.2,3.63476]
[1739791299531,3.63396,2751.9,2751.3,3.63464]
[1739791299728,3.64907,2751.8,2751.1,3.63488]
[1739791300155,3.63416,2751.7,2751.1,3.63488]
[1739791300518,0.015,2751.6,2750.9,8.70475112]
[1739791300753,0.015,2751.6,2750.9,5.06964112]
[1739791301067,0.7946,2752.0,2751.3,3.63454]
[1739791301564,0.015,2751.9,2751.3,3.63454]
[1739791301763,3.64891,2751.9,2751.3,3.63454]
[1739791302642,0.015,2751.9,2751.5,3.63436]
[1739791303244,0.015,2751.9,2751.3,3.63454]
[1739791303419,3.64886,2751.9,2751.3,3.63454]
[1739791304253,3.64886,2751.9,2751.4,0.05129403]
[1739791304950,0.0075,2751.7,2751.4,0.05129403]
[1739791305165,3.64163,2751.7,2751.4,0.05129403]
[1739791305336,3.64163,2751.7,2751.1,3.63482]
[1739791305535,3.63425,2751.6,2751.5,0.05129403]
[1739791305830,3.64156,2751.8,2751.5,0.05129403]
[1739791306065,0.0075,2751.8,2751.3,3.6346]
[1739791306267,0.0075,2751.8,2751.6,0.05129403]
[1739791306268,3.6415,2751.8,2751.6,0.05129403]
[1739791306467,3.6415,2751.8,2751.3,3.6346]
[1739791306765,0.015,2751.8,2751.3,3.6346]
[1739791306936,0.015,2751.8,2751.4,0.05129403]
[1739791307114,3.64898,2751.8,2751.4,0.05129403]
[1739791307315,0.015,2751.8,2751.4,0.05129403]
[1739791307614,0.824,2752.4,2751.9,3.63383]
[1739791307823,0.824,2752.4,2752.0,3.63363]
[1739791308026,3.63299,2752.6,2752.0,3.63363]
[1739791308236,0.7684,2752.7,2752.1,0.05266917]
[1739791308450,3.6327,2752.8,2752.3,3.6332]
[1739791308845,3.6327,2752.8,2752.4,0.05266917]
[1739791309219,17.90589,2753.0,2752.4,0.05266917]
[1739791309423,0.015,2752.9,2752.4,0.05266917]
[1739791309616,3.63279,2752.7,2752.1,4.41282]
[1739791309966,0.0075,2752.7,2752.2,3.68602917]
[1739791310368,3.633,2752.6,2752.2,0.05266917]
[1739791310833,0.015,2752.7,2752.3,3.63329]
[1739791311032,0.015,2752.7,2752.4,0.05394006]
[1739791311391,0.015,2752.7,2752.2,3.63344]
[1739791311598,3.64782,2752.7,2752.5,0.05394006]
[1739791311770,3.64782,2752.7,2752.2,3.63344]
[1739791311973,3.64782,2752.7,2752.6,0.05394006]
[1739791312166,0.015,2752.7,2752.2,3.63336]
[1739791312402,0.015,2752.7,2752.6,0.05394006]
[1739791312571,0.015,2752.7,2752.2,3.63336]
[1739791312759,0.015,2752.7,2752.6,0.05394006]
[1739791313267,12.56585,2753.0,2752.5,3.63304]
[1739791313610,3.64753,2752.9,2752.6,0.05394006]
[1739791313961,3.64753,2752.9,2752.4,3.63315]
[1739791314162,3.64753,2752.9,2752.7,0.05394006]
[1739791314388,3.64753,2752.9,2752.4,3.63315]
[1739791314591,3.64753,2752.9,2752.8,0.05394006]
[1739791314789,3.64753,2752.9,2752.4,3.63309]
[1739791315261,3.64753,2752.9,2752.5,0.05394006]
[1739791316094,0.015,2752.9,2752.5,0.05394006]
[1739791316294,0.015,2752.9,2752.5,3.68699006]
[1739791316807,3.64759,2752.9,2752.5,0.05394006]
[1739791317014,0.015,2752.9,2752.5,0.05394006]
[1739791317216,3.63192,2753.4,2752.5,0.05394006]
[1739791317411,4.45411,2753.3,2752.8,3.63266]
[1739791317559,0.015,2753.2,2752.8,3.63266]
[1739791317760,0.015,2753.2,2752.6,3.63283]
[1739791317761,0.0075,2753.0,2752.6,3.63283]
[1739791317960,3.6472,2753.2,2752.9,0.05394006]
[1739791318207,3.6472,2753.2,2752.6,7.26567]
[1739791318208,7.27941,2753.2,2752.6,7.26567]
[1739791318410,7.27941,2753.2,2753.0,0.05394006]
[1739791318716,3.63244,2753.0,2752.5,3.63302]
[1739791318972,0.015,2752.9,2752.4,3.6331]
[1739791319130,0.0075,2752.8,2752.4,3.6331]
[1739791320280,0.0075,2752.8,2752.2,3.63337]
[1739791320487,0.0075,2753.0,2752.3,3.63332]
[1739791320697,0.0075,2752.8,2752.4,3.63312]
[1739791321094,0.0075,2752.8,2752.4,4.359764]
[1739791321302,4.45419,2753.3,2752.7,3.63272]
[1739791321584,3.64722,2753.2,2752.7,3.63272]
[1739791322442,3.64722,2753.2,2752.7,3.63279]
[1739791322848,0.015,2753.2,2752.5,0.7843]
[1739791323052,0.8221,2753.3,2752.8,3.6326]
[1739791323349,0.015,2753.5,2753.0,3.63232]
[1739791323512,0.015,2753.5,2752.8,3.99584]
[1739791323708,0.0075,2753.3,2752.9,3.63252]
[1739791324048,0.0075,2753.3,2753.0,3.63229]
[1739791324245,0.0075,2753.5,2753.0,3.63229]
[1739791324453,3.63146,2753.8,2753.3,3.63192]
[1739791324620,0.788,2753.9,2753.4,3.63183]
[1739791324951,0.788,2753.9,2753.0,0.7843]
[1739791324952,0.015,2753.8,2753.2,3.63208]
[1739791325109,3.6315,2753.7,2753.2,3.63208]
[1739791325310,0.0075,2753.5,2753.3,0.05271672]
[1739791325544,0.0075,2753.5,2753.1,3.63225]
[1739791325702,0.0075,2753.5,2753.4,0.0527029]
[1739791326045,0.0075,2753.5,2753.1,3.63225]
[1739791326234,0.0075,2753.5,2753.4,0.05248187]
[1739791326946,0.015,2753.6,2753.2,3.63212]
[1739791327117,0.015,2753.6,2753.0,4.41657]
[1739791327451,0.015,2753.6,2753.2,3.6321]
[1739791327657,0.0075,2753.6,2753.2,3.63205]
[1739791327858,0.0075,2753.4,2752.8,3.63259]
[1739791328001,3.64687,2753.4,2753.3,0.05248187]
[1739791328398,0.0075,2753.0,2752.6,3.63282]
[1739791328706,0.0075,2753.0,2752.7,0.0525164]
[1739791329027,0.8254,2753.0,2752.7,0.0525164]
[1739791329538,4.45782,2753.0,2752.7,0.0525164]
[1739791329751,4.45782,2753.0,2752.5,3.63302]
[1739791329956,0.8254,2753.0,2752.8,0.05244726]
[1739791330249,0.015,2753.1,2752.7,3.63277]
[1739791330414,0.015,2753.1,2752.9,0.05244726]
[1739791330618,0.015,2753.1,2752.7,3.63277]
[1739791330818,0.015,2753.1,2753.0,0.05244726]
[1739791331022,0.015,2753.1,2752.6,3.6329]
[1739791331356,3.64728,2753.1,2752.6,3.6329]
[1739791331506,3.64728,2753.1,2752.7,0.05244726]
[1739791332048,0.015,2753.1,2752.7,3.63278]
[1739791332203,0.015,2753.1,2752.8,0.05244726]
[1739791332735,3.64727,2753.1,2752.9,0.05244726]
[1739791333152,3.64727,2753.1,2752.5,3.63299]
[1739791333303,3.64727,2753.1,2753.0,0.05244726]
[1739791333503,0.015,2753.1,2752.5,3.63297]
[1739791333703,0.015,2753.1,2752.6,3.68528726]
[1739791333905,0.015,2753.1,2752.7,3.63275]
[1739791334215,3.64732,2753.1,2752.6,3.63284]
[1739791334708,3.64732,2753.1,2752.7,0.05244726]
[1739791335110,3.63247,2753.0,2752.7,0.05244726]
[1739791335311,0.015,2753.1,2752.6,3.63284]
[1739791335507,0.015,2753.1,2752.7,3.68519726]
[1739791335754,0.015,2753.1,2752.8,3.63262]
[1739791336463,0.015,2753.1,2752.9,0.05244726]
[1739791337151,0.015,2753.1,2753.0,0.05244726]
[1739791337571,0.8137,2753.6,2753.1,3.63218]
[1739791337853,0.015,2753.7,2753.3,3.632]
[1739791338206,8.164,2754.2,2753.6,3.63156]
[1739791338442,8.9777,2754.2,2753.6,3.63156]